[Event "Titled Tuesday Blitz November 29 Early 2022"]
[White "Baches Garcia, Guillermo"]
[Black "Pakleza, Zbigniew"]
[WhiteFideId "2209764"]
[BlackFideId "1119290"]
[WhiteElo "2451"]
[BlackElo "2411"]
[Result "1-0"]
[Round "01"]
[TimeControl "180+1"]
[Date "2022.11.30"]
[WhiteClock "0:00:05"]
[BlackClock "0:00:16"]

1. e4 {[%clk 0:03:00]}  d6 {[%clk 0:02:54]} 2. d4 {[%clk 0:03:00]}  Nf6 {[%clk 0:02:55]} 3. f3 {[%clk 0:03:00]}  Nbd7 {[%clk 0:02:54]} 4. Ne2 {[%clk 0:02:55]}  e5 {[%clk 0:02:55]} 5. c4 {[%clk 0:02:55]}  Be7 {[%clk 0:02:54]} 6. Nbc3 {[%clk 0:02:55]}  O-O {[%clk 0:02:54]} 7. Be3 {[%clk 0:02:55]}  c6 {[%clk 0:02:54]} 8. Qd2 {[%clk 0:02:55]}  a6 {[%clk 0:02:54]} 9. g4 {[%clk 0:02:51]}  b5 {[%clk 0:02:52]} 10. g5 {[%clk 0:02:46]}  Nh5 {[%clk 0:02:49]} 11. Ng3 {[%clk 0:02:45]}  Nf4 {[%clk 0:02:47]} 12. h4 {[%clk 0:02:40]}  Nb6 {[%clk 0:02:22]} 13. c5 {[%clk 0:01:49]}  dxc5 {[%clk 0:02:19]} 14. dxe5 {[%clk 0:01:43]}  Qxd2+ {[%clk 0:02:17]} 15. Bxd2 {[%clk 0:01:37]}  Ne6 {[%clk 0:02:16]} 16. Nf5 {[%clk 0:01:31]}  Re8 {[%clk 0:02:09]} 17. O-O-O {[%clk 0:01:23]}  Bf8 {[%clk 0:01:54]} 18. Be3 {[%clk 0:01:21]}  b4 {[%clk 0:01:28]} 19. Nb1 {[%clk 0:01:12]}  a5 {[%clk 0:01:29]} 20. Nd6 {[%clk 0:01:03]}  Rd8 {[%clk 0:01:25]} 21. f4 {[%clk 0:00:56]}  Ba6 {[%clk 0:01:19]} 22. Bxa6 {[%clk 0:00:50]}  Rxa6 {[%clk 0:01:20]} 23. f5 {[%clk 0:00:45]}  Nd4 {[%clk 0:01:20]} 24. Bxd4 {[%clk 0:00:40]}  cxd4 {[%clk 0:01:21]} 25. Rxd4 {[%clk 0:00:41]}  c5 {[%clk 0:01:19]} 26. Rd2 {[%clk 0:00:38]}  c4 {[%clk 0:01:15]} 27. Rhd1 {[%clk 0:00:36]}  Rd7 {[%clk 0:00:59]} 28. Nxc4 {[%clk 0:00:32]}  Rc7 {[%clk 0:00:57]} 29. b3 {[%clk 0:00:30]}  Nxc4 {[%clk 0:00:57]} 30. bxc4 {[%clk 0:00:30]}  Rxc4+ {[%clk 0:00:58]} 31. Rc2 {[%clk 0:00:29]}  Rxe4 {[%clk 0:00:58]} 32. Rd8 {[%clk 0:00:26]}  h6 {[%clk 0:00:32]} 33. Rcc8 {[%clk 0:00:23]}  hxg5 {[%clk 0:00:24]} 34. hxg5 {[%clk 0:00:22]}  Rc6+ {[%clk 0:00:15]} 35. Rxc6 {[%clk 0:00:22]}  Rxe5 {[%clk 0:00:16]} 36. Rcc8 {[%clk 0:00:21]}  Rxf5 {[%clk 0:00:17]} 37. Rxf8+ {[%clk 0:00:21]}  Kh7 {[%clk 0:00:17]} 38. Rc6 {[%clk 0:00:19]}  Rxg5 {[%clk 0:00:17]} 39. Rxf7 {[%clk 0:00:19]}  Rg1+ {[%clk 0:00:17]} 40. Kc2 {[%clk 0:00:19]}  Rg2+ {[%clk 0:00:18]} 41. Nd2 {[%clk 0:00:19]}  a4 {[%clk 0:00:17]} 42. Rb6 {[%clk 0:00:14]}  b3+ {[%clk 0:00:18]} 43. axb3 {[%clk 0:00:14]}  axb3+ {[%clk 0:00:19]} 44. Rxb3 {[%clk 0:00:14]}  Kg8 {[%clk 0:00:20]} 45. Rbf3 {[%clk 0:00:14]}  Rg6 {[%clk 0:00:20]} 46. R7f4 {[%clk 0:00:14]}  Rc6+ {[%clk 0:00:19]} 47. Kd3 {[%clk 0:00:14]}  Rd6+ {[%clk 0:00:20]} 48. Ke3 {[%clk 0:00:14]}  Ra6 {[%clk 0:00:21]} 49. Ne4 {[%clk 0:00:14]}  Ra3+ {[%clk 0:00:21]} 50. Kf2 {[%clk 0:00:15]}  Ra2+ {[%clk 0:00:21]} 51. Kg3 {[%clk 0:00:15]}  Ra1 {[%clk 0:00:22]} 52. Kg4 {[%clk 0:00:15]}  Kh7 {[%clk 0:00:22]} 53. Ng5+ {[%clk 0:00:15]}  Kg6 {[%clk 0:00:22]} 54. Ne4 {[%clk 0:00:15]}  Rg1+ {[%clk 0:00:22]} 55. Ng3 {[%clk 0:00:15]}  Ra1 {[%clk 0:00:23]} 56. Re4 {[%clk 0:00:15]}  Ra6 {[%clk 0:00:23]} 57. Re5 {[%clk 0:00:15]}  Ra4+ {[%clk 0:00:23]} 58. Rf4 {[%clk 0:00:15]}  Ra6 {[%clk 0:00:23]} 59. Rfe4 {[%clk 0:00:15]}  Kh7 {[%clk 0:00:23]} 60. Re6 {[%clk 0:00:15]}  Ra1 {[%clk 0:00:23]} 61. Rd4 {[%clk 0:00:15]}  Ra5 {[%clk 0:00:22]} 62. Ree4 {[%clk 0:00:14]}  Ra6 {[%clk 0:00:23]} 63. Rd5 {[%clk 0:00:14]}  Rg6+ {[%clk 0:00:23]} 64. Rg5 {[%clk 0:00:14]}  Ra6 {[%clk 0:00:24]} 65. Re7 {[%clk 0:00:14]}  Kh8 {[%clk 0:00:22]} 66. Nf5 {[%clk 0:00:09]}  Ra4+ {[%clk 0:00:20]} 67. Kf3 {[%clk 0:00:09]}  g6 {[%clk 0:00:20]} 68. Nd6 {[%clk 0:00:07]}  Ra6 {[%clk 0:00:17]} 69. Rc5 {[%clk 0:00:06]}  Ra3+ {[%clk 0:00:16]} 70. Ke2 {[%clk 0:00:05]}  Ra2+ {[%clk 0:00:15]} 71. Kd1 {[%clk 0:00:05]}  Ra5 {[%clk 0:00:16]} 72. Rc8# {[%clk 0:00:05]} 1-0


[Site "https://www.chess.com"]

[Event "Titled Tuesday Blitz November 29 Early 2022"]
[White "Bashirli, Saadat"]
[Black "Dehtiarov, Roman"]
[WhiteFideId "13429990"]
[BlackFideId "14186640"]
[WhiteElo "1408"]
[BlackElo "2200"]
[Result "1-0"]
[Round "01"]
[TimeControl "180+1"]
[Date "2022.11.30"]
[WhiteClock "0:00:17"]
[BlackClock "0:00:14"]

1. d4 {[%clk 0:02:59]}  Nf6 {[%clk 0:02:59]} 2. c4 {[%clk 0:02:58]}  e6 {[%clk 0:02:59]} 3. Nc3 {[%clk 0:02:58]}  Bb4 {[%clk 0:02:59]} 4. e3 {[%clk 0:02:59]}  O-O {[%clk 0:02:58]} 5. Bd3 {[%clk 0:02:59]}  b6 {[%clk 0:02:58]} 6. Ne2 {[%clk 0:02:59]}  Bb7 {[%clk 0:02:57]} 7. O-O {[%clk 0:03:00]}  d5 {[%clk 0:02:52]} 8. a3 {[%clk 0:02:56]}  Be7 {[%clk 0:02:50]} 9. cxd5 {[%clk 0:02:52]}  exd5 {[%clk 0:02:51]} 10. Qc2 {[%clk 0:02:51]}  Nbd7 {[%clk 0:02:50]} 11. Nf4 {[%clk 0:02:51]}  h6 {[%clk 0:02:49]} 12. Qb3 {[%clk 0:02:40]}  c6 {[%clk 0:02:47]} 13. Bf5 {[%clk 0:02:38]}  Bd6 {[%clk 0:02:46]} 14. Nd3 {[%clk 0:02:37]}  Re8 {[%clk 0:02:44]} 15. Bd2 {[%clk 0:02:34]}  Nf8 {[%clk 0:02:37]} 16. Rac1 {[%clk 0:02:32]}  Bc8 {[%clk 0:02:26]} 17. Bxc8 {[%clk 0:02:26]}  Rxc8 {[%clk 0:02:27]} 18. Na4 {[%clk 0:02:23]}  Ng6 {[%clk 0:02:21]} 19. f3 {[%clk 0:02:11]}  Qc7 {[%clk 0:02:11]} 20. h3 {[%clk 0:01:38]}  Nh5 {[%clk 0:02:05]} 21. f4 {[%clk 0:01:34]}  Ng3 {[%clk 0:01:54]} 22. Rf2 {[%clk 0:01:31]}  Qd7 {[%clk 0:01:41]} 23. Ne5 {[%clk 0:01:27]}  Bxe5 {[%clk 0:01:37]} 24. fxe5 {[%clk 0:01:28]}  Ne4 {[%clk 0:01:37]} 25. Re2 {[%clk 0:01:27]}  Nh4 {[%clk 0:01:37]} 26. Be1 {[%clk 0:01:23]}  Nf5 {[%clk 0:01:26]} 27. Nc3 {[%clk 0:01:18]}  Nxc3 {[%clk 0:01:27]} 28. Qxc3 {[%clk 0:01:17]}  Ng3 {[%clk 0:01:26]} 29. Bxg3 {[%clk 0:01:16]}  c5 {[%clk 0:01:24]} 30. dxc5 {[%clk 0:01:14]}  Rxc5 {[%clk 0:01:24]} 31. Qd2 {[%clk 0:01:14]}  Rxc1+ {[%clk 0:01:21]} 32. Qxc1 {[%clk 0:01:14]}  Qf5 {[%clk 0:01:21]} 33. Rf2 {[%clk 0:01:13]}  Qg6 {[%clk 0:01:21]} 34. Kh2 {[%clk 0:01:11]}  h5 {[%clk 0:01:19]} 35. Rc2 {[%clk 0:01:08]}  Qe4 {[%clk 0:01:12]} 36. Rc8 {[%clk 0:01:06]}  Rxc8 {[%clk 0:01:12]} 37. Qxc8+ {[%clk 0:01:07]}  Kh7 {[%clk 0:01:12]} 38. Qc3 {[%clk 0:01:05]}  h4 {[%clk 0:01:10]} 39. Bf4 {[%clk 0:01:04]}  Qf5 {[%clk 0:01:08]} 40. g4 {[%clk 0:00:48]}  Qe4 {[%clk 0:00:54]} 41. b4 {[%clk 0:00:38]}  Qf3 {[%clk 0:00:38]} 42. Qd3+ {[%clk 0:00:35]}  Kg8 {[%clk 0:00:35]} 43. Qc2 {[%clk 0:00:34]}  g5 {[%clk 0:00:31]} 44. Bxg5 {[%clk 0:00:32]}  Qg3+ {[%clk 0:00:31]} 45. Kh1 {[%clk 0:00:31]}  Qxh3+ {[%clk 0:00:31]} 46. Kg1 {[%clk 0:00:29]}  Qg3+ {[%clk 0:00:27]} 47. Qg2 {[%clk 0:00:27]}  Qxe5 {[%clk 0:00:27]} 48. Bf4 {[%clk 0:00:25]}  Qg7 {[%clk 0:00:15]} 49. g5 {[%clk 0:00:22]}  d4 {[%clk 0:00:14]} 50. Qa8+ {[%clk 0:00:20]}  Kh7 {[%clk 0:00:14]} 51. Qe4+ {[%clk 0:00:20]}  Kg8 {[%clk 0:00:15]} 52. Qxd4 {[%clk 0:00:21]}  Qg6 {[%clk 0:00:15]} 53. Qd8+ {[%clk 0:00:21]}  Kh7 {[%clk 0:00:16]} 54. Qd2 {[%clk 0:00:19]}  Qf5 {[%clk 0:00:14]} 55. Kg2 {[%clk 0:00:17]} 1-0


[Site "https://www.chess.com"]

[Event "Titled Tuesday Blitz November 29 Early 2022"]
[White "Baskakov, Egor"]
[Black "Herman, Daniel"]
[WhiteFideId "24197866"]
[BlackFideId "30935008"]
[WhiteElo "2211"]
[BlackElo "1897"]
[Result "1-0"]
[Round "01"]
[TimeControl "180+1"]
[Date "2022.11.30"]
[WhiteClock "0:01:42"]
[BlackClock "0:00:47"]

1. e4 {[%clk 0:02:56]}  g6 {[%clk 0:02:59]} 2. g3 {[%clk 0:02:53]}  Bg7 {[%clk 0:03:00]} 3. Bg2 {[%clk 0:02:53]}  c5 {[%clk 0:02:58]} 4. Ne2 {[%clk 0:02:52]}  Nc6 {[%clk 0:02:59]} 5. O-O {[%clk 0:02:51]}  Nf6 {[%clk 0:02:58]} 6. Nbc3 {[%clk 0:02:49]}  O-O {[%clk 0:02:57]} 7. d4 {[%clk 0:02:48]}  cxd4 {[%clk 0:02:57]} 8. Nxd4 {[%clk 0:02:49]}  Nxe4 {[%clk 0:02:37]} 9. Nxc6 {[%clk 0:02:46]}  Nxc3 {[%clk 0:02:37]} 10. Nxe7+ {[%clk 0:02:45]}  Qxe7 {[%clk 0:02:37]} 11. bxc3 {[%clk 0:02:46]}  Bxc3 {[%clk 0:02:29]} 12. Rb1 {[%clk 0:02:46]}  d6 {[%clk 0:02:21]} 13. Bf4 {[%clk 0:02:39]}  Rd8 {[%clk 0:02:08]} 14. Qd3 {[%clk 0:02:37]}  Bg7 {[%clk 0:02:04]} 15. Rfe1 {[%clk 0:02:34]}  Qf6 {[%clk 0:01:51]} 16. h4 {[%clk 0:02:32]}  h6 {[%clk 0:01:50]} 17. Qd2 {[%clk 0:02:21]}  Kh7 {[%clk 0:01:48]} 18. c4 {[%clk 0:02:20]}  Be6 {[%clk 0:01:36]} 19. Rxb7 {[%clk 0:02:13]}  Bxc4 {[%clk 0:01:32]} 20. Bd5 {[%clk 0:02:13]}  Bxd5 {[%clk 0:01:05]} 21. Qxd5 {[%clk 0:02:14]}  Re8 {[%clk 0:00:58]} 22. Rxe8 {[%clk 0:02:05]}  Rxe8 {[%clk 0:00:59]} 23. Rxf7 {[%clk 0:02:05]}  Qa1+ {[%clk 0:00:56]} 24. Kg2 {[%clk 0:02:03]}  Re1 {[%clk 0:00:56]} 25. Bxd6 {[%clk 0:01:46]}  Rh1 {[%clk 0:00:47]} 26. Rxg7+ {[%clk 0:01:42]} 1-0


[Site "https://www.chess.com"]

[Event "Titled Tuesday Blitz November 29 Early 2022"]
[White "Boyer, Mahel"]
[Black "Ovezdurdyyeva, Jemal"]
[WhiteFideId "45102422"]
[BlackFideId "14001888"]
[WhiteElo "2454"]
[BlackElo "1961"]
[Result "0-1"]
[Round "01"]
[TimeControl "180+1"]
[Date "2022.11.30"]
[WhiteClock "0:00:40"]
[BlackClock "0:00:18"]

1. d4 {[%clk 0:02:52]}  Nf6 {[%clk 0:02:59]} 2. g3 {[%clk 0:02:43]}  e6 {[%clk 0:02:57]} 3. Bg2 {[%clk 0:02:43]}  d5 {[%clk 0:02:55]} 4. Nd2 {[%clk 0:02:41]}  Be7 {[%clk 0:02:53]} 5. e4 {[%clk 0:02:41]}  c5 {[%clk 0:02:45]} 6. exd5 {[%clk 0:02:38]}  Nxd5 {[%clk 0:02:42]} 7. dxc5 {[%clk 0:02:36]}  Bxc5 {[%clk 0:02:42]} 8. Ne4 {[%clk 0:02:34]}  Be7 {[%clk 0:02:21]} 9. Ne2 {[%clk 0:02:34]}  O-O {[%clk 0:02:20]} 10. O-O {[%clk 0:02:34]}  Nc6 {[%clk 0:02:20]} 11. a3 {[%clk 0:02:35]}  e5 {[%clk 0:02:10]} 12. c4 {[%clk 0:02:34]}  Nb6 {[%clk 0:02:08]} 13. b3 {[%clk 0:02:28]}  Bg4 {[%clk 0:01:55]} 14. f3 {[%clk 0:01:39]}  Be6 {[%clk 0:01:47]} 15. Be3 {[%clk 0:01:38]}  f5 {[%clk 0:01:45]} 16. N4c3 {[%clk 0:01:38]}  Bf6 {[%clk 0:01:44]} 17. Qxd8 {[%clk 0:01:31]}  Raxd8 {[%clk 0:01:41]} 18. Rfd1 {[%clk 0:01:32]}  Nd4 {[%clk 0:01:37]} 19. Bxd4 {[%clk 0:01:23]}  exd4 {[%clk 0:01:36]} 20. Nb5 {[%clk 0:01:24]}  d3 {[%clk 0:01:34]} 21. Nf4 {[%clk 0:01:23]}  Bf7 {[%clk 0:01:19]} 22. Ra2 {[%clk 0:01:11]}  g5 {[%clk 0:01:15]} 23. Nxd3 {[%clk 0:01:10]}  a6 {[%clk 0:01:13]} 24. c5 {[%clk 0:01:08]}  axb5 {[%clk 0:01:10]} 25. cxb6 {[%clk 0:01:08]}  Bxb3 {[%clk 0:01:10]} 26. Rad2 {[%clk 0:01:05]}  Bxd1 {[%clk 0:01:10]} 27. Rxd1 {[%clk 0:01:06]}  Bd4+ {[%clk 0:01:07]} 28. Kf1 {[%clk 0:01:05]}  Bxb6 {[%clk 0:01:06]} 29. f4 {[%clk 0:01:06]}  gxf4 {[%clk 0:01:04]} 30. gxf4 {[%clk 0:01:07]}  Rd4 {[%clk 0:01:03]} 31. Bxb7 {[%clk 0:01:04]}  Rfd8 {[%clk 0:01:00]} 32. Ke2 {[%clk 0:01:04]}  Re8+ {[%clk 0:00:59]} 33. Kf1 {[%clk 0:01:02]}  Re3 {[%clk 0:00:58]} 34. Nb2 {[%clk 0:00:55]}  Rxf4+ {[%clk 0:00:54]} 35. Kg2 {[%clk 0:00:55]}  Re2+ {[%clk 0:00:53]} 36. Kg3 {[%clk 0:00:55]}  Rg4+ {[%clk 0:00:53]} 37. Kf3 {[%clk 0:00:55]}  Rxb2 {[%clk 0:00:53]} 38. Bc8 {[%clk 0:00:54]}  Rb3+ {[%clk 0:00:52]} 39. Ke2 {[%clk 0:00:54]}  Rg2+ {[%clk 0:00:52]} 40. Kf1 {[%clk 0:00:54]}  Rf2+ {[%clk 0:00:51]} 41. Ke1 {[%clk 0:00:55]}  Rxh2 {[%clk 0:00:52]} 42. Be6+ {[%clk 0:00:53]}  Kg7 {[%clk 0:00:51]} 43. Bxb3 {[%clk 0:00:54]}  Rh3 {[%clk 0:00:46]} 44. Rd7+ {[%clk 0:00:53]}  Kf6 {[%clk 0:00:41]} 45. Bg8 {[%clk 0:00:48]}  Ba5+ {[%clk 0:00:38]} 46. Kd1 {[%clk 0:00:47]}  h5 {[%clk 0:00:32]} 47. Rd6+ {[%clk 0:00:40]}  Kg5 {[%clk 0:00:31]} 48. Rd5 {[%clk 0:00:39]}  Rxa3 {[%clk 0:00:26]} 49. Rxb5 {[%clk 0:00:39]}  Bc7 {[%clk 0:00:26]} 50. Ke2 {[%clk 0:00:39]}  Bf4 {[%clk 0:00:21]} 51. Be6 {[%clk 0:00:39]}  Re3+ {[%clk 0:00:20]} 52. Kf2 {[%clk 0:00:39]}  Rxe6 {[%clk 0:00:21]} 53. Kf3 {[%clk 0:00:40]}  Re3+ {[%clk 0:00:21]} 54. Kf2 {[%clk 0:00:40]}  Re4 {[%clk 0:00:21]} 55. Kf3 {[%clk 0:00:40]}  Ra4 {[%clk 0:00:21]} 56. Rb3 {[%clk 0:00:40]}  h4 {[%clk 0:00:20]} 57. Kg2 {[%clk 0:00:39]}  Ra2+ {[%clk 0:00:19]} 58. Kh3 {[%clk 0:00:40]}  Rh2# {[%clk 0:00:18]} 0-1


[Site "https://www.chess.com"]

[Event "Titled Tuesday Blitz November 29 Early 2022"]
[White "Chernobay, Artem"]
[Black "Maung, Maung Kyaw Zaw Hein"]
[WhiteFideId "4167406"]
[BlackFideId "13001698"]
[WhiteElo "2473"]
[BlackElo "2019"]
[Result "1-0"]
[Round "01"]
[TimeControl "180+1"]
[Date "2022.11.30"]
[WhiteClock "0:00:12"]
[BlackClock "0:00:04"]

1. e4 {[%clk 0:02:59]}  c6 {[%clk 0:02:59]} 2. d4 {[%clk 0:02:58]}  d5 {[%clk 0:02:59]} 3. Nd2 {[%clk 0:02:59]}  dxe4 {[%clk 0:03:00]} 4. Nxe4 {[%clk 0:02:59]}  Bf5 {[%clk 0:03:00]} 5. Ng3 {[%clk 0:02:59]}  Bg6 {[%clk 0:02:59]} 6. h4 {[%clk 0:02:59]}  h6 {[%clk 0:02:59]} 7. Nf3 {[%clk 0:02:59]}  Nd7 {[%clk 0:02:59]} 8. h5 {[%clk 0:02:59]}  Bh7 {[%clk 0:02:59]} 9. Bd3 {[%clk 0:02:59]}  Bxd3 {[%clk 0:02:59]} 10. Qxd3 {[%clk 0:03:00]}  e6 {[%clk 0:03:00]} 11. Bd2 {[%clk 0:03:00]}  Ngf6 {[%clk 0:03:00]} 12. O-O-O {[%clk 0:03:01]}  Be7 {[%clk 0:03:00]} 13. Ne4 {[%clk 0:03:02]}  Nxe4 {[%clk 0:03:00]} 14. Qxe4 {[%clk 0:03:03]}  Nf6 {[%clk 0:03:01]} 15. Qd3 {[%clk 0:03:03]}  Qd5 {[%clk 0:03:01]} 16. c4 {[%clk 0:03:03]}  Qe4 {[%clk 0:03:01]} 17. Qb3 {[%clk 0:03:03]}  O-O {[%clk 0:02:56]} 18. Rde1 {[%clk 0:02:45]}  Qf5 {[%clk 0:02:54]} 19. Qxb7 {[%clk 0:02:30]}  Bd6 {[%clk 0:02:26]} 20. Qxc6 {[%clk 0:02:21]}  Rfd8 {[%clk 0:01:56]} 21. Qa4 {[%clk 0:02:19]}  Rac8 {[%clk 0:01:51]} 22. c5 {[%clk 0:02:07]}  Bf4 {[%clk 0:01:15]} 23. Bxf4 {[%clk 0:02:02]}  Qxf4+ {[%clk 0:01:15]} 24. Kb1 {[%clk 0:02:03]}  Nd5 {[%clk 0:01:11]} 25. Qc2 {[%clk 0:01:50]}  Rb8 {[%clk 0:01:09]} 26. Re4 {[%clk 0:01:16]}  Qxe4 {[%clk 0:00:58]} 27. Qxe4 {[%clk 0:01:10]}  Nc3+ {[%clk 0:00:59]} 28. Ka1 {[%clk 0:01:08]}  Nxe4 {[%clk 0:00:59]} 29. Rc1 {[%clk 0:00:53]}  Ng5 {[%clk 0:00:57]} 30. Ne5 {[%clk 0:00:52]}  Rxd4 {[%clk 0:00:52]} 31. Nc6 {[%clk 0:00:51]}  Rdd8 {[%clk 0:00:50]} 32. Nxb8 {[%clk 0:00:50]}  Rxb8 {[%clk 0:00:49]} 33. f3 {[%clk 0:00:49]}  e5 {[%clk 0:00:43]} 34. a3 {[%clk 0:00:49]}  a5 {[%clk 0:00:42]} 35. Rc4 {[%clk 0:00:47]}  Ne6 {[%clk 0:00:40]} 36. b4 {[%clk 0:00:46]}  axb4 {[%clk 0:00:40]} 37. axb4 {[%clk 0:00:47]}  Kf8 {[%clk 0:00:40]} 38. Kb2 {[%clk 0:00:46]}  Ke7 {[%clk 0:00:40]} 39. Kc3 {[%clk 0:00:46]}  Kd7 {[%clk 0:00:37]} 40. Re4 {[%clk 0:00:44]}  f6 {[%clk 0:00:36]} 41. Re1 {[%clk 0:00:42]}  Kc6 {[%clk 0:00:35]} 42. Ra1 {[%clk 0:00:38]}  Nd4 {[%clk 0:00:33]} 43. Ra6+ {[%clk 0:00:35]}  Kc7 {[%clk 0:00:30]} 44. Kc4 {[%clk 0:00:32]}  Nc6 {[%clk 0:00:19]} 45. b5 {[%clk 0:00:32]}  Nd8 {[%clk 0:00:19]} 46. Rd6 {[%clk 0:00:27]}  Nb7 {[%clk 0:00:18]} 47. b6+ {[%clk 0:00:26]}  Kc8 {[%clk 0:00:18]} 48. Rd1 {[%clk 0:00:23]}  Nd8 {[%clk 0:00:17]} 49. Kb5 {[%clk 0:00:22]}  Kb7 {[%clk 0:00:16]} 50. Rd7+ {[%clk 0:00:19]}  Kc8 {[%clk 0:00:17]} 51. Rxg7 {[%clk 0:00:19]}  Rb7 {[%clk 0:00:15]} 52. Rg8 {[%clk 0:00:17]}  Rf7 {[%clk 0:00:14]} 53. c6 {[%clk 0:00:16]}  f5 {[%clk 0:00:03]} 54. b7+ {[%clk 0:00:13]}  Kc7 {[%clk 0:00:04]} 55. Rxd8 {[%clk 0:00:13]}  Kxd8 {[%clk 0:00:04]} 56. b8=Q+ {[%clk 0:00:12]}  Ke7 {[%clk 0:00:04]} 57. Qxe5+ {[%clk 0:00:12]} 1-0


[Site "https://www.chess.com"]

[Event "Titled Tuesday Blitz November 29 Early 2022"]
[White "Chigaev, Maksim"]
[Black "Vlassov, Nikolai"]
[WhiteFideId "4108116"]
[BlackFideId "4103360"]
[WhiteElo "2541"]
[BlackElo "2324"]
[Result "1-0"]
[Round "01"]
[TimeControl "180+1"]
[Date "2022.11.30"]
[WhiteClock "0:00:56"]
[BlackClock "0:00:35"]

1. c4 {[%clk 0:02:56]}  e5 {[%clk 0:02:58]} 2. g3 {[%clk 0:02:56]}  Nc6 {[%clk 0:02:53]} 3. Bg2 {[%clk 0:02:57]}  h5 {[%clk 0:02:53]} 4. h4 {[%clk 0:02:53]}  Nf6 {[%clk 0:02:53]} 5. Nc3 {[%clk 0:02:54]}  Ng4 {[%clk 0:02:53]} 6. e3 {[%clk 0:02:53]}  d6 {[%clk 0:02:44]} 7. a3 {[%clk 0:02:52]}  Be7 {[%clk 0:02:38]} 8. Nf3 {[%clk 0:02:51]}  Be6 {[%clk 0:02:35]} 9. d3 {[%clk 0:02:49]}  O-O {[%clk 0:02:26]} 10. O-O {[%clk 0:02:42]}  f5 {[%clk 0:02:17]} 11. b4 {[%clk 0:02:33]}  g5 {[%clk 0:02:12]} 12. hxg5 {[%clk 0:02:31]}  Bxg5 {[%clk 0:02:12]} 13. b5 {[%clk 0:02:31]}  Na5 {[%clk 0:02:10]} 14. Nd5 {[%clk 0:02:02]}  Rf7 {[%clk 0:01:50]} 15. Bd2 {[%clk 0:01:58]}  Bxd5 {[%clk 0:01:36]} 16. Nxg5 {[%clk 0:01:44]}  Bxg2 {[%clk 0:01:21]} 17. Nxf7 {[%clk 0:01:44]}  Kxf7 {[%clk 0:01:08]} 18. Kxg2 {[%clk 0:01:44]}  b6 {[%clk 0:01:08]} 19. Bxa5 {[%clk 0:01:38]}  bxa5 {[%clk 0:01:08]} 20. Qf3 {[%clk 0:01:38]}  Kg6 {[%clk 0:00:59]} 21. e4 {[%clk 0:01:24]}  f4 {[%clk 0:00:52]} 22. gxf4 {[%clk 0:01:25]}  exf4 {[%clk 0:00:50]} 23. Qxf4 {[%clk 0:01:26]}  Qd7 {[%clk 0:00:44]} 24. f3 {[%clk 0:01:10]}  Ne5 {[%clk 0:00:42]} 25. d4 {[%clk 0:00:58]}  Nxc4 {[%clk 0:00:41]} 26. Kh2 {[%clk 0:00:56]}  Kg7 {[%clk 0:00:35]} 27. Rg1+ {[%clk 0:00:56]} 1-0


[Site "https://www.chess.com"]

[Event "Titled Tuesday Blitz November 29 Early 2022"]
[White "Corrales Jimenez, Fidel"]
[Black "Reprintsev, Alexander"]
[WhiteFideId "3506690"]
[BlackFideId "14100541"]
[WhiteElo "2541"]
[BlackElo "2230"]
[Result "1-0"]
[Round "01"]
[TimeControl "180+1"]
[Date "2022.11.30"]
[WhiteClock "0:01:57"]
[BlackClock "0:01:49"]

1. e4 {[%clk 0:02:57]}  d5 {[%clk 0:02:59]} 2. exd5 {[%clk 0:02:57]}  Qxd5 {[%clk 0:02:57]} 3. Nc3 {[%clk 0:02:57]}  Qa5 {[%clk 0:02:55]} 4. d4 {[%clk 0:02:56]}  Nf6 {[%clk 0:02:54]} 5. Bc4 {[%clk 0:02:55]}  Nc6 {[%clk 0:02:48]} 6. Ne2 {[%clk 0:02:49]}  Bf5 {[%clk 0:02:38]} 7. d5 {[%clk 0:02:41]}  Ne5 {[%clk 0:02:35]} 8. Bb3 {[%clk 0:02:39]}  O-O-O {[%clk 0:02:30]} 9. O-O {[%clk 0:02:37]}  e6 {[%clk 0:02:30]} 10. Nd4 {[%clk 0:02:34]}  Bg4 {[%clk 0:02:24]} 11. Qe1 {[%clk 0:02:33]}  Bd6 {[%clk 0:02:18]} 12. dxe6 {[%clk 0:02:17]}  fxe6 {[%clk 0:02:17]} 13. Ncb5 {[%clk 0:02:12]}  Qxe1 {[%clk 0:02:15]} 14. Rxe1 {[%clk 0:02:10]}  Bc5 {[%clk 0:02:07]} 15. Nxe6 {[%clk 0:02:01]}  Bxe6 {[%clk 0:01:56]} 16. Bxe6+ {[%clk 0:02:02]}  Kb8 {[%clk 0:01:56]} 17. Bf4 {[%clk 0:01:58]}  Bd6 {[%clk 0:01:49]} 18. Bxe5 {[%clk 0:01:57]} 1-0


[Site "https://www.chess.com"]

[Event "Titled Tuesday Blitz November 29 Early 2022"]
[White "Cramling Bellon, Anna"]
[Black "Ilkhomi, Jaloliddin"]
[WhiteFideId "32009232"]
[BlackFideId "14700948"]
[WhiteElo "1972"]
[BlackElo "2045"]
[Result "1-0"]
[Round "01"]
[TimeControl "180+1"]
[Date "2022.11.30"]
[WhiteClock "0:00:08"]
[BlackClock "0:00:43"]

1. d4 {[%clk 0:02:58]}  Nf6 {[%clk 0:02:59]} 2. c4 {[%clk 0:02:57]}  e6 {[%clk 0:02:59]} 3. Nc3 {[%clk 0:02:57]}  Bb4 {[%clk 0:02:59]} 4. Qc2 {[%clk 0:02:48]}  O-O {[%clk 0:02:53]} 5. e4 {[%clk 0:02:43]}  d5 {[%clk 0:02:53]} 6. cxd5 {[%clk 0:02:39]}  exd5 {[%clk 0:02:49]} 7. e5 {[%clk 0:02:35]}  Ne4 {[%clk 0:02:48]} 8. Bd3 {[%clk 0:02:34]}  f5 {[%clk 0:02:35]} 9. Nf3 {[%clk 0:02:23]}  c5 {[%clk 0:02:24]} 10. O-O {[%clk 0:02:19]}  cxd4 {[%clk 0:02:12]} 11. Nxd5 {[%clk 0:02:07]}  Nc6 {[%clk 0:01:56]} 12. Nxb4 {[%clk 0:01:23]}  Nxb4 {[%clk 0:01:49]} 13. Qb3+ {[%clk 0:01:23]}  Nd5 {[%clk 0:01:45]} 14. Bc4 {[%clk 0:01:22]}  Be6 {[%clk 0:01:40]} 15. Nxd4 {[%clk 0:01:22]}  Nc5 {[%clk 0:01:16]} 16. Nxe6 {[%clk 0:00:47]}  Nxb3 {[%clk 0:01:03]} 17. Nxd8 {[%clk 0:00:47]}  Nxa1 {[%clk 0:01:02]} 18. Bxd5+ {[%clk 0:00:47]}  Kh8 {[%clk 0:01:02]} 19. Nf7+ {[%clk 0:00:39]}  Kg8 {[%clk 0:01:02]} 20. Nd6+ {[%clk 0:00:22]}  Kh8 {[%clk 0:01:02]} 21. Bd2 {[%clk 0:00:13]}  Nc2 {[%clk 0:01:01]} 22. Bc3 {[%clk 0:00:13]}  a5 {[%clk 0:00:54]} 23. a3 {[%clk 0:00:13]}  b5 {[%clk 0:00:53]} 24. Bxa8 {[%clk 0:00:13]}  Rxa8 {[%clk 0:00:54]} 25. Rc1 {[%clk 0:00:13]}  b4 {[%clk 0:00:54]} 26. Rxc2 {[%clk 0:00:13]}  h6 {[%clk 0:00:49]} 27. Bd2 {[%clk 0:00:09]}  Kh7 {[%clk 0:00:48]} 28. Nxf5 {[%clk 0:00:09]}  Rf8 {[%clk 0:00:47]} 29. Nd6 {[%clk 0:00:08]}  Rd8 {[%clk 0:00:46]} 30. g3 {[%clk 0:00:08]}  b3 {[%clk 0:00:46]} 31. Rc7 {[%clk 0:00:08]}  a4 {[%clk 0:00:46]} 32. Bc3 {[%clk 0:00:08]}  Rf8 {[%clk 0:00:44]} 33. e6 {[%clk 0:00:08]}  Rc8 {[%clk 0:00:41]} 34. Rxc8 {[%clk 0:00:07]}  h5 {[%clk 0:00:42]} 35. e7 {[%clk 0:00:08]}  h4 {[%clk 0:00:43]} 36. e8=Q {[%clk 0:00:08]}  h3 {[%clk 0:00:43]} 37. Qh5# {[%clk 0:00:08]} 1-0


[Site "https://www.chess.com"]